lending/lending_fUSD_20250516
["ID","MTS","AMOUNT","RATE_DAILY","PERIOD"]
[361285628,1747422645998,-400.0,0.00016438,2]
[361285629,1747422646007,-400.0,0.00016438,2]
[361285630,1747422646017,-649.09,0.00016438,2]
[361285631,1747422646026,-400.0,0.00016438,2]
[361285632,1747422646035,-400.0,0.00016438,2]
[361285633,1747422646045,-1518.1,0.00016438,2]
[361285634,1747422646054,-531.25,0.00016438,2]
[361285635,1747422646063,-595.2,0.00016438,2]
[361285636,1747422646073,-667.89,0.00016438,2]
[361285637,1747422646082,-400.0,0.00016438,2]
[361285638,1747422646091,-400.0,0.00016438,2]
[361285639,1747422646101,-1000.0,0.00016438,2]
[361285640,1747422646111,-1676.99,0.00016438,2]
[361285641,1747422646120,-402.5,0.00016438,2]
[361285642,1747422646129,-400.0,0.00016438,2]
[361285643,1747422646139,-400.0,0.00016438,2]
[361285644,1747422646150,-1417.72,0.00016438,2]
[361285645,1747422646159,-861.51,0.00016438,2]
[361285646,1747422646168,-285.42156025,0.00016438,2]
[361285647,1747422646177,-400.0,0.00016438,2]
[361285648,1747422646187,-414.67,0.00016438,2]
[361285649,1747422646201,-909.84,0.00016438,2]
[361285650,1747422646210,-975.35,0.00016438,2]
[361285651,1747422646220,-400.0,0.00016438,2]
[361285652,1747422646230,-201.04298743,0.00016438,2]
[361285653,1747422646239,-1205.94,0.00016438,2]
[361285654,1747422646247,-400.0,0.00016438,2]
[361285655,1747422646257,-400.0,0.00016438,2]
[361285656,1747422646266,-400.0,0.00016438,2]
[361285657,1747422646275,-400.0,0.00016438,2]
[361285658,1747422646284,-400.0,0.00016438,2]
[361285659,1747422646294,-400.0,0.00016438,2]
[361285660,1747422646303,-694.84,0.00016438,2]
[361285661,1747422646312,-496.54,0.00016438,2]
[361285662,1747422646321,-400.0,0.00016438,2]
[361285663,1747422646330,-400.0,0.00016438,2]
[361285664,1747422646340,-752.4,0.00016438,2]
[361285665,1747422646350,-1445.40882853,0.00016438,2]
[361285666,1747422646376,-1882.47117147,0.00016438,2]
[361285667,1747422646386,-203.03859776,0.00016438,2]
[361285668,1747422646395,-400.0,0.00016438,2]
[361285669,1747422646404,-400.0,0.00016438,2]
[361285670,1747422646413,-400.0,0.00016438,2]
[361285671,1747422646422,-7582.95,0.00016438,2]
[361285672,1747422646431,-400.0,0.00016438,2]
[361285673,1747422646440,-400.0,0.00016438,2]
[361285675,1747422646449,-403.66128293,0.00016438,2]
[361285676,1747422646460,-400.0,0.00016438,2]
[361285678,1747422646469,-3016.59742931,0.00016438,2]
[361285680,1747422646514,-443.88181818,0.00016438,2]
[361285681,1747422647306,-194.97909011,0.00016331,2]
[361285682,1747422647316,-400.0,0.00016438,2]
[361285683,1747422647326,-673.34,0.00016438,2]
[361285684,1747422647336,-400.0,0.00016438,2]
[361285685,1747422647345,-400.0,0.00016438,2]
[361285686,1747422647358,-508.16,0.00016438,2]
[361285687,1747422647368,-400.0,0.00016438,2]
[361285688,1747422647378,-743.37,0.00016438,2]
[361285689,1747422647388,-621.63,0.00016438,2]
[361285690,1747422647398,-615.85,0.00016438,2]
[361285691,1747422647408,-691.24,0.00016438,2]
[361285692,1747422647417,-565.84,0.00016438,2]
[361285693,1747422647427,-400.0,0.00016438,2]
[361285694,1747422647437,-1735.02,0.00016438,2]
[361285695,1747422647446,-2872.85,0.00016438,2]
[361285696,1747422647456,-400.0,0.00016438,2]
[361285697,1747422647814,-987.83,0.00016438,2]
[361285698,1747422647831,-400.0,0.00016438,2]
[361285699,1747422647842,-151.0,0.00016438,2]
[361285700,1747422647851,-151.0,0.00016438,2]
[361285701,1747422647861,-151.0,0.00016438,2]
[361285702,1747422647871,-30431.07346901,0.00016438,2]
[361285703,1747422647883,-4264.46124633,0.00016438,2]
[361285704,1747422891445,300.0,0.00024658,30]
[361285705,1747423241586,150.0,0.00012384,2]
[361285706,1747423409663,158.39,0.00021945,30]
[361285751,1747423832749,-509.21,0.00013275,2]
[361285753,1747423832758,-200.0,0.00013328,2]
[361285755,1747423832768,-200.0,0.00013381,2]
[361285757,1747423832777,-582.12,0.00013699,2]
[361285759,1747423832787,-166.0,0.00013999,2]
[361285761,1747423832796,-300.0,0.00013999,2]
[361285763,1747423832806,-1200.0,0.00013999,2]
[361285765,1747423832815,-300.0,0.00013999,2]
[361285767,1747423832824,-2371.04688668,0.00014,2]
[361285769,1747423832836,-2097.4060442,0.00014,2]
[361285772,1747423832850,-511.93572855,0.00014,2]
[361285774,1747423832861,-284.36355178,0.00014,2]
[361285781,1747423832916,-2886.61304334,0.00014,2]
[361285783,1747423832928,-9563.97306288,0.00014,2]
[361285785,1747423832939,-724.11652513,0.00014,2]
[361285787,1747423832950,-416.08916345,0.00014,2]
[361285807,1747423833144,-1021.33793827,0.00014,2]
[361285811,1747423833171,-2151.62442316,0.00014,2]
[361285813,1747423833183,-971.7483977,0.00014,2]
[361285815,1747423833196,-1782.83334699,0.00014,2]
[361285818,1747423833206,-200.0,0.00014602,2]
[361285822,1747423833215,-250.0,0.00014602,2]
[361285826,1747423833226,-200.0,0.00014602,2]
[361285829,1747423833235,-7.16665301,0.00014602,2]
[361285833,1747423833248,-242.83334699,0.00014602,2]
[361285836,1747423833257,-65.67864801,0.00014602,2]
[361285840,1747423833291,-134.32135199,0.00014602,2]
[361285842,1747423833301,-250.0,0.00014602,2]
[361285844,1747423833311,-2770.25566503,0.000149,2]
[361285846,1747423833321,-179.67,0.00015066,2]
[361285848,1747423833330,-2770.25566482,0.00015141,2]
[361285850,1747423833340,-200.0,0.00015182,2]
[361285852,1747423833350,-420.0,0.00015337,2]
[361285854,1747423833360,-2770.25566482,0.00015383,2]
[361285856,1747423833370,-657.0,0.00015399,2]
[361285858,1747423833381,-150.0,0.00015432,7]
[361285860,1747423833391,-242.91,0.00015445,2]
[361285862,1747423833401,-150.72,0.00015445,2]
[361285864,1747423833411,-3448.71,0.00015461,2]
[361285866,1747423833421,-250.0,0.00015485,2]
[361285868,1747423833431,-509.21,0.00015539,2]
[361285870,1747423833440,-4415.29,0.00015557,2]
[361285872,1747423833450,-207.4,0.00015615,2]
[361285874,1747423833459,-2770.25566482,0.00015624,2]
[361285876,1747423833469,-500.0,0.000158,5]
[361285878,1747423833479,-2770.25566482,0.00015866,2]
[361285880,1747423833489,-1000.0,0.000159,5]
[361285882,1747423833498,-300.0,0.00015999,2]
[361285884,1747423833507,-1000.0,0.00016,2]
[361285886,1747423833516,-1000.0,0.00016,2]
[361285888,1747423833525,-1000.0,0.00016,3]
[361285890,1747423833535,-1000.0,0.00016,3]
[361285892,1747423833544,-1000.0,0.00016,3]
[361285893,1747423833554,-1000.0,0.00016,3]
[361285896,1747423833564,-1000.0,0.00016,2]
[361285897,1747423833574,-1000.0,0.00016,4]
[361285898,1747423833583,-1000.0,0.00016,3]
[361285899,1747423833593,-2770.25566482,0.00016107,2]
[361285900,1747423833603,-9999.99,0.00016116,2]
[361285901,1747423833613,-150.99,0.00016116,2]
[361285902,1747423833622,-5504.22,0.00016116,2]
[361285903,1747423833632,-999.99,0.00016116,2]
[361285904,1747423833642,-299.99,0.00016116,4]
[361285905,1747423833651,-9999.99,0.00016116,2]
[361285906,1747423834069,-4963.3476,0.00016238,2]
[361285907,1747423834094,-200.0,0.00016307,2]
[361285908,1747423834105,-151.0,0.00016328,2]
[361285909,1747423834114,-599.60298507,0.00016328,2]
[361285910,1747423834124,-152.80769174,0.00016328,2]
[361285911,1747423834134,-668.65185757,0.00016328,2]
[361285912,1747423834143,-2125.715,0.00016331,2]
[361285913,1747423834153,-864.05076374,0.00016336,2]
[361285914,1747423834162,-176.03075843,0.00016338,2]
[361285915,1747423834172,-1584.042,0.00016338,2]
[361285916,1747423834182,-182.301,0.00016338,2]
[361285917,1747423834192,-169.13735755,0.00016338,2]
[361285918,1747423834202,-11410.34679705,0.00016338,2]
[361285919,1747423834211,-198.16540015,0.00016338,2]
[361285920,1747423834221,-1961.47017088,0.00016338,2]
[361285921,1747423834231,-399.00510487,0.00016338,2]
[361285922,1747423834241,-500.0,0.00016347,2]
[361285923,1747423834251,-2770.25566482,0.00016348,2]
[361285924,1747423834261,-868.8851476,0.00016355,2]
[361285925,1747423834271,-150.85,0.00016385,2]
[361285926,1747423834281,-1211.0,0.00016411,2]
[361285927,1747423834291,-150.83,0.00016412,2]
[361285928,1747423834301,-799.0,0.00016418,2]
[361285929,1747423834310,-629.0,0.00016418,2]
[361285930,1747423834320,-598.099,0.00016418,2]
[361285931,1747423834331,-553.0,0.00016418,2]
[361285932,1747423834342,-919.0,0.00016418,2]
[361285933,1747423834351,-1458.0,0.00016418,2]
[361285934,1747423834361,-1253.0,0.00016418,2]
[361285935,1747423834371,-1148.0,0.00016418,2]
[361285936,1747423834381,-5941.0,0.00016418,2]
[361285937,1747423834391,-154.0,0.00016418,2]
[361285938,1747423834400,-1306.0,0.00016418,2]
[361285939,1747423834410,-6822.0,0.00016418,2]
[361285940,1747423834419,-932.0,0.00016418,2]
[361285941,1747423834429,-11410.34679699,0.00016429,2]
[361285942,1747423834438,-28061.1074548,0.00016434,2]
[361285943,1747423834447,-15041.2443883,0.00016434,2]
[361285944,1747423834457,-10807.9000028,0.00016434,2]
[361285945,1747423834467,-2237.8130907,0.00016434,2]
[361285946,1747423834477,-1204.8350427,0.00016434,2]
[361285947,1747423834486,-57509.3301794,0.00016434,2]
[361285948,1747423834496,-1043.732906,0.00016434,2]
[361285949,1747423834505,-9116.9060541,0.00016434,2]
[361285950,1747423834514,-187.79210022,0.00016437,2]
[361285951,1747423834524,-635.8705,0.00016437,2]
[361285952,1747423834534,-484212.19208294,0.00016438,2]
[361285953,1747423834546,-1030.8947,0.00016438,2]
[361285954,1747423834558,-520.28391676,0.00016438,2]
[361285955,1747423834569,-2500.0,0.00016438,2]
[361285956,1747423834592,-1886.38084821,0.00016438,2]
[361285957,1747423834603,-559.46319352,0.00016438,2]
[361285958,1747423834615,-539.30050583,0.00016438,2]
[361285959,1747423834626,-2674.86695459,0.00016438,2]
[361285960,1747423834637,-550.99707701,0.00016438,2]
[361285962,1747423838074,-4037.0,0.00016418,2]
[361285963,1747423838084,-344.85539644,0.00016428,2]
[361285964,1747423838094,-3249.18968469,0.00016438,2]
[361285966,1747423838128,-531.72185726,0.00016438,2]
[361285967,1747423838140,-1832.76746192,0.00016438,2]
[361285968,1747423838151,-7111.92951842,0.00016438,2]
[361285969,1747423838161,-495.05914087,0.00016438,2]
[361285970,1747423838171,-549.0,0.00016438,2]
[361285971,1747423838180,-151.0,0.00016438,2]
[361285972,1747423838190,-151.0,0.00016438,2]
[361285973,1747423838199,-151.0,0.00016438,2]
[361285974,1747423838209,-151.0,0.00016438,2]
[361285975,1747423838219,-1359.0,0.00016438,2]
[361285976,1747423838228,-1359.0,0.00016438,2]
[361285977,1747423838237,-151.0,0.00016438,2]
[361285978,1747423838248,-1359.0,0.00016438,2]
[361285979,1747423838257,-151.0,0.00016438,2]
[361285980,1747423838266,-44.56565105,0.00016438,2]
[361285981,1747423838294,-337.91013047,0.00016438,2]
[361285982,1747423838305,-976.52421848,0.00016438,2]
[361285983,1747423838314,-1359.0,0.00016438,2]
[361285984,1747423838323,-1359.0,0.00016438,2]
[361285985,1747423838333,-534.05823214,0.00016438,2]
[361285986,1747423838360,-824.94176786,0.00016438,2]
[361285987,1747423838370,-822.11497606,0.00016438,2]
[361285988,1747423838381,-536.88502394,0.00016438,2]
[361285989,1747423838391,-1359.0,0.00016438,2]
[361285990,1747423838401,-1359.0,0.00016438,2]
[361285991,1747423838410,-12.11497606,0.00016438,2]
[361285992,1747423838422,-138.88502394,0.00016438,2]
[361285993,1747423838431,-151.0,0.00016438,2]
[361285994,1747423838441,-151.0,0.00016438,2]
[361285995,1747423838450,-151.0,0.00016438,2]
[361285996,1747423838459,-151.0,0.00016438,2]
[361285997,1747423838469,-151.0,0.00016438,2]
[361285999,1747423838478,-151.0,0.00016438,2]
[361286001,1747423838487,-151.0,0.00016438,2]
[361286002,1747423838496,-160.66497606,0.00016438,2]
[361286003,1747423838514,-1166.20502394,0.00016438,2]
[361286004,1747423838524,-400.0,0.00016438,2]
[361286006,1747423838533,-400.0,0.00016438,2]
[361286007,1747423838542,-676.26,0.00016438,2]
[361286008,1747423838551,-400.0,0.00016438,2]
[361286009,1747423838560,-400.0,0.00016438,2]
[361286010,1747423838570,-400.0,0.00016438,2]
[361286011,1747423838579,-400.0,0.00016438,2]
[361286012,1747423838588,-400.0,0.00016438,2]
[361286013,1747423838598,-511.32347803,0.00016438,2]
[361286014,1747423838607,-723.27,0.00016438,2]
[361286016,1747423838617,-400.0,0.00016438,2]
[361286017,1747423838626,-400.0,0.00016438,2]
[361286018,1747423838636,-480.51,0.00016438,2]
[361286019,1747423838645,-736.38,0.00016438,2]
[361286020,1747423838655,-400.0,0.00016438,2]
[361286021,1747423838665,-507.1,0.00016438,2]
[361286022,1747423838674,-400.0,0.00016438,2]
[361286023,1747423838684,-429.85,0.00016438,2]
[361286024,1747423838694,-642.7,0.00016438,2]
[361286025,1747423838704,-400.0,0.00016438,2]
[361286026,1747423838714,-400.0,0.00016438,2]
[361286027,1747423838723,-400.0,0.00016438,2]
[361286028,1747423838733,-824.67,0.00016438,2]
[361286029,1747423838744,-754.78,0.00016438,2]
[361286030,1747423838755,-400.0,0.00016438,2]
[361286031,1747423838764,-400.0,0.00016438,2]
[361286032,1747423838773,-400.0,0.00016438,2]
[361286033,1747423838782,-605.71,0.00016438,2]
[361286034,1747423838793,-400.0,0.00016438,2]
[361286035,1747423838803,-400.0,0.00016438,2]
[361286036,1747423838812,-400.0,0.00016438,2]
[361286037,1747423838822,-400.0,0.00016438,2]
[361286038,1747423838831,-400.0,0.00016438,2]
[361286039,1747423838841,-400.0,0.00016438,2]
[361286040,1747423838853,-400.0,0.00016438,2]
[361286041,1747423838863,-400.0,0.00016438,2]
[361286042,1747423838873,-608.79,0.00016438,2]
[361286043,1747423838883,-400.0,0.00016438,2]
[361286044,1747423838893,-1001.41,0.00016438,2]
[361286045,1747423838903,-621.18,0.00016438,2]
[361286046,1747423838912,-547.4,0.00016438,2]
[361286047,1747423838921,-564.16,0.00016438,2]
[361286048,1747423838931,-400.0,0.00016438,2]
[361286049,1747423838940,-400.0,0.00016438,2]
[361286050,1747423838950,-400.0,0.00016438,2]
[361286051,1747423838960,-298.24568223,0.00016438,2]
[361286052,1747423838969,-435.26,0.00016438,2]
[361286053,1747423838979,-400.0,0.00016438,2]
[361286054,1747423838989,-366.79,0.00016438,2]
[361286055,1747423838999,-400.0,0.00016438,2]
[361286056,1747423839010,-400.0,0.00016438,2]
[361286057,1747423839019,-160.23384331,0.00016438,2]
[361286058,1747423839029,-400.0,0.00016438,2]
[361286059,1747423839039,-400.0,0.00016438,2]
[361286060,1747423839048,-400.0,0.00016438,2]
[361286061,1747423839059,-400.0,0.00016438,2]
[361286062,1747423839069,-455.18367217,0.00016438,2]
[361286063,1747423839079,-400.0,0.00016438,2]
[361286064,1747423839089,-675.87,0.00016438,2]
[361286065,1747423839100,-400.0,0.00016438,2]
[361286066,1747423839110,-400.0,0.00016438,2]
[361286067,1747423839120,-1142.91,0.00016438,2]
[361286068,1747423839129,-400.0,0.00016438,2]
[361286069,1747423839139,-400.0,0.00016438,2]
[361286070,1747423839148,-400.0,0.00016438,2]
[361286071,1747423839157,-493.87,0.00016438,2]
[361286072,1747423839167,-400.0,0.00016438,2]
[361286073,1747423839177,-416.12,0.00016438,2]
[361286074,1747423839186,-400.0,0.00016438,2]
[361286075,1747423839196,-400.0,0.00016438,2]
[361286076,1747423839206,-438.08,0.00016438,2]
[361286077,1747423839216,-400.0,0.00016438,2]
[361286078,1747423839227,-472.11,0.00016438,2]
[361286079,1747423839237,-400.0,0.00016438,2]
[361286080,1747423839247,-400.0,0.00016438,2]
[361286081,1747423839257,-400.0,0.00016438,2]
[361286082,1747423839267,-400.0,0.00016438,2]
[361286083,1747423839277,-400.0,0.00016438,2]
[361286084,1747423839286,-400.0,0.00016438,2]
[361286085,1747423839296,-400.0,0.00016438,2]
[361286086,1747423839306,-400.0,0.00016438,2]
[361286087,1747423839315,-408.28,0.00016438,2]
[361286088,1747423839325,-400.0,0.00016438,2]
[361286089,1747423839335,-400.0,0.00016438,2]
[361286090,1747423839348,-400.0,0.00016438,2]
[361286091,1747423839357,-429.97,0.00016438,2]
[361286092,1747423839367,-151.0,0.00016438,2]
[361286093,1747423839377,-400.0,0.00016438,2]
[361286094,1747423839387,-151.0,0.00016438,2]
[361286095,1747423839397,-565.77,0.00016438,2]
[361286096,1747423839406,-151.0,0.00016438,2]
[361286097,1747423839415,-151.0,0.00016438,2]
[361286098,1747423839425,-596.25,0.00016438,2]
[361286099,1747423839434,-400.0,0.00016438,2]
[361286100,1747423839444,-400.0,0.00016438,2]
[361286101,1747423839453,-739.22,0.00016438,2]
[361286102,1747423839462,-400.0,0.00016438,2]
[361286103,1747423839472,-400.0,0.00016438,2]
[361286104,1747423839481,-400.0,0.00016438,2]
[361286105,1747423839490,-400.0,0.00016438,2]
[361286106,1747423839500,-553.49,0.00016438,2]
[361286107,1747423839510,-257.11846578,0.00016438,2]
[361286108,1747423839519,-780.34,0.00016438,2]
[361286109,1747423839528,-167.045918,0.00016438,2]
[361286110,1747423839537,-469.84179327,0.00016438,2]
[361286111,1747423839546,-452.18730939,0.00016438,2]
[361286112,1747423839555,-479.21,0.00016438,2]
[361286113,1747423839565,-400.0,0.00016438,2]
[361286114,1747423839574,-400.0,0.00016438,2]
[361286115,1747423839585,-400.0,0.00016438,2]
[361286116,1747423839594,-6216.430252,0.00016438,2]
[361286117,1747423839603,-806.960292,0.00016438,2]
[361286118,1747423839613,-400.0,0.00016438,2]
[361286119,1747423839622,-400.0,0.00016438,2]
[361286120,1747423839632,-400.0,0.00016438,2]
[361286121,1747423839642,-400.0,0.00016438,2]
[361286122,1747423839651,-400.0,0.00016438,2]
[361286123,1747423839661,-597.66,0.00016438,2]
[361286124,1747423839671,-151.0,0.00016438,2]
[361286125,1747423839680,-163.62034,0.00016438,2]
[361286126,1747423839689,-533.70906101,0.00016438,2]
[361286127,1747423839698,-460.81,0.00016438,2]
[361286128,1747423839707,-400.0,0.00016438,2]
[361286129,1747423839716,-151.0,0.00016438,2]
[361286130,1747423839726,-285.13906,0.00016438,2]
[361286131,1747423839736,-400.0,0.00016438,2]
[361286132,1747423839749,-404.67037495,0.00016438,2]
[361286133,1747423839759,-400.0,0.00016438,2]
[361286134,1747423839768,-400.0,0.00016438,2]
[361286135,1747423839783,-400.0,0.00016438,2]
[361286136,1747423839793,-400.0,0.00016438,2]
[361286137,1747423839803,-576.12213,0.00016438,2]
[361286138,1747423839812,-400.0,0.00016438,2]
[361286139,1747423839823,-400.0,0.00016438,2]
[361286140,1747423839833,-400.0,0.00016438,2]
[361286141,1747423839843,-400.0,0.00016438,2]
[361286142,1747423839854,-400.0,0.00016438,2]
[361286143,1747423839864,-400.0,0.00016438,2]
[361286144,1747423839873,-400.0,0.00016438,2]
[361286145,1747423839883,-400.0,0.00016438,2]
[361286146,1747423839892,-400.0,0.00016438,2]
[361286147,1747423839902,-177.38925559,0.00016438,2]
[361286148,1747423839912,-400.0,0.00016438,2]
[361286149,1747423839922,-407.61694486,0.00016438,2]
[361286150,1747423839932,-400.0,0.00016438,2]
[361286151,1747423839941,-400.0,0.00016438,2]
[361286152,1747423839951,-400.0,0.00016438,2]
[361286153,1747423839961,-400.0,0.00016438,2]
[361286154,1747423839970,-159.370353,0.00016438,2]
[361286155,1747423839980,-400.0,0.00016438,2]
[361286156,1747423839989,-475.3,0.00016438,2]
[361286157,1747423839998,-400.0,0.00016438,2]
[361286158,1747423840007,-400.0,0.00016438,2]
[361286159,1747423840017,-850.13,0.00016438,2]
[361286160,1747423840027,-415.7851113,0.00016438,2]
[361286161,1747423840037,-457.33,0.00016438,2]
[361286162,1747423840046,-474.97,0.00016438,2]
[361286163,1747423840055,-400.0,0.00016438,2]
[361286164,1747423840065,-400.0,0.00016438,2]
[361286165,1747423840074,-462.91,0.00016438,2]
[361286166,1747423840084,-400.0,0.00016438,2]
[361286167,1747423840093,-400.0,0.00016438,2]
[361286168,1747423840102,-400.0,0.00016438,2]
[361286169,1747423840112,-153.91261671,0.00016438,2]
[361286170,1747423840121,-929.9,0.00016438,2]
[361286171,1747423840131,-400.0,0.00016438,2]
[361286172,1747423840140,-1019.08,0.00016438,2]
[361286173,1747423840149,-151.0,0.00016438,2]
[361286174,1747423840159,-400.0,0.00016438,2]
[361286175,1747423840168,-400.0,0.00016438,2]
[361286176,1747423840178,-156.55806067,0.00016438,2]
[361286177,1747423840188,-567.73,0.00016438,2]
[361286178,1747423840197,-400.0,0.00016438,2]
[361286179,1747423840207,-400.0,0.00016438,2]
[361286181,1747423840217,-400.0,0.00016438,2]
[361286183,1747423840227,-400.0,0.00016438,2]
[361286184,1747423840237,-400.0,0.00016438,2]
[361286186,1747423840246,-400.0,0.00016438,2]
[361286187,1747423840256,-400.0,0.00016438,2]
[361286188,1747423840266,-1652.96,0.00016438,2]
[361286189,1747423840276,-400.0,0.00016438,2]
[361286190,1747423840285,-181.09905809,0.00016438,2]
[361286191,1747423840295,-869.58,0.00016438,2]
[361286192,1747423840305,-300.0,0.00016438,2]
[361286193,1747423840314,-403.75,0.00016438,2]
[361286194,1747423840324,-400.0,0.00016438,2]
[361286195,1747423840334,-667.88,0.00016438,2]
[361286196,1747423840344,-412.34404527,0.00016438,2]
[361286197,1747423840354,-400.0,0.00016438,2]
[361286198,1747423840364,-400.0,0.00016438,2]
[361286199,1747423840373,-1466.92,0.00016438,2]
[361286200,1747423840383,-455.01,0.00016438,2]
[361286201,1747423840392,-400.0,0.00016438,2]
[361286202,1747423840402,-400.0,0.00016438,2]
[361286203,1747423840411,-197.92545786,0.00016438,2]
[361286204,1747423840420,-544.36,0.00016438,2]
[361286205,1747423840429,-435.88,0.00016438,2]
[361286206,1747423840439,-454.54,0.00016438,2]
[361286207,1747423840449,-965.18,0.00016438,2]
[361286208,1747423840459,-400.0,0.00016438,2]
[361286209,1747423840469,-400.0,0.00016438,2]
[361286210,1747423840479,-390.71659593,0.00016438,2]
[361286211,1747423840488,-1420.33,0.00016438,2]
[361286212,1747423840498,-544.3770118,0.00016438,2]
[361286213,1747423840508,-1035.09,0.00016438,2]
[361286214,1747423840517,-400.0,0.00016438,2]
[361286215,1747423840527,-400.0,0.00016438,2]
[361286216,1747423840537,-825.61,0.00016438,2]
[361286217,1747423840547,-558.94,0.00016438,2]
[361286218,1747423840556,-400.0,0.00016438,2]
[361286219,1747423840566,-409.65048027,0.00016438,2]
[361286220,1747423840575,-400.0,0.00016438,2]
[361286221,1747423840585,-400.0,0.00016438,2]
[361286222,1747423840596,-517.27,0.00016438,2]
[361286223,1747423840605,-400.0,0.00016438,2]
[361286224,1747423840615,-400.0,0.00016438,2]
[361286225,1747423840625,-400.0,0.00016438,2]
[361286226,1747423840635,-400.0,0.00016438,2]
[361286227,1747423840644,-400.0,0.00016438,2]
[361286228,1747423840654,-853.48,0.00016438,2]
[361286229,1747423840664,-401.08284905,0.00016438,2]
[361286230,1747423840674,-400.0,0.00016438,2]
[361286231,1747423840684,-400.0,0.00016438,2]
[361286232,1747423840693,-400.0,0.00016438,2]
[361286234,1747423840702,-400.0,0.00016438,2]
[361286235,1747423840712,-783.58,0.00016438,2]
[361286236,1747423840722,-483.06,0.00016438,2]
[361286237,1747423840731,-414.33,0.00016438,2]
[361286238,1747423840742,-1000.0,0.00016438,2]
[361286239,1747423840755,-400.0,0.00016438,2]
[361286240,1747423840765,-400.0,0.00016438,2]
[361286241,1747423840775,-400.0,0.00016438,2]
[361286242,1747423840784,-721.05,0.00016438,2]
[361286243,1747423840794,-570.4,0.00016438,2]
[361286244,1747423840803,-424.88,0.00016438,2]
[361286245,1747423840813,-400.0,0.00016438,2]
[361286246,1747423840823,-691.93,0.00016438,2]
[361286247,1747423840833,-973.01,0.00016438,2]
[361286248,1747423840842,-400.0,0.00016438,2]
[361286249,1747423840852,-401.94454105,0.00016438,2]
[361286250,1747423840862,-475.85,0.00016438,2]
[361286252,1747423840871,-401.30690591,0.00016438,2]
[361286253,1747423840880,-822.59,0.00016438,2]
[361286254,1747423840890,-400.0,0.00016438,2]
[361286255,1747423840900,-543.55870894,0.00016438,2]
[361286256,1747423840910,-400.0,0.00016438,2]
[361286257,1747423840919,-151.0,0.00016438,2]
[361286258,1747423840928,-192.4089844,0.00016438,2]
[361286259,1747423840937,-763.79,0.00016438,2]
[361286260,1747423840947,-151.0,0.00016438,2]
[361286261,1747423840958,-758.73,0.00016438,2]
[361286262,1747423840967,-151.0,0.00016438,2]
[361286263,1747423840977,-151.0,0.00016438,2]
[361286264,1747423840986,-151.0,0.00016438,2]
[361286265,1747423840996,-400.0,0.00016438,2]
[361286266,1747423841006,-400.0,0.00016438,2]
[361286267,1747423841015,-400.0,0.00016438,2]
[361286268,1747423841026,-1735.65,0.00016438,2]
[361286269,1747423841035,-400.0,0.00016438,2]
[361286270,1747423841045,-400.0,0.00016438,2]
[361286271,1747423841054,-400.0,0.00016438,2]
[361286272,1747423841063,-1039.76,0.00016438,2]
[361286273,1747423841073,-400.0,0.00016438,2]
[361286274,1747423841082,-590.19,0.00016438,2]
[361286275,1747423841091,-400.0,0.00016438,2]
[361286276,1747423841102,-648.71,0.00016438,2]